[Event "Grandmaster Triathlon (GM1)"]
[Site "Biel, CH"]
[Date "2025.07.20"]
[Round "17"]
[White "Aravindh, Chithambaram VR."]
[Black "Svane, Frederik"]
[Result "1-0"]
[Board "1"]
[TimeControl "180+2"]
[WhiteFideId "5072786"]
[BlackFideId "12923044"]
[WhiteTitle "GM"]
[BlackTitle "GM"]
[WhiteElo "2611"]
[BlackElo "2553"]
[WhiteTeam "IND"]
[BlackTeam "GER"]
[WhiteClock "0:00:05"]
[BlackClock "0:00:05"]
[Variant "Standard"]

1. d4 {[%clk 0:03:03]}  d5 {[%clk 0:03:03]} 2. c4 {[%clk 0:03:04]}  e6 {[%clk 0:03:05]} 3. Nc3 {[%clk 0:03:04]}  Nf6 {[%clk 0:03:06]} 4. Nf3 {[%clk 0:03:03]}  Bb4 {[%clk 0:03:07]} 5. g3 {[%clk 0:03:01]}  O-O {[%clk 0:03:02]} 6. Bg2 {[%clk 0:03:02]}  dxc4 {[%clk 0:03:02]} 7. O-O {[%clk 0:02:54]}  Nc6 {[%clk 0:03:03]} 8. a3 {[%clk 0:02:56]}  Be7 {[%clk 0:03:01]} 9. e4 {[%clk 0:02:56]}  a6 {[%clk 0:03:02]} 10. Be3 {[%clk 0:02:51]}  b5 {[%clk 0:02:46]} 11. Qc2 {[%clk 0:02:52]}  Ng4 {[%clk 0:02:34]} 12. Bf4 {[%clk 0:02:44]}  g5 {[%clk 0:01:50]} 13. d5 {[%clk 0:02:32]}  gxf4 {[%clk 0:01:51]} 14. dxc6 {[%clk 0:02:33]}  fxg3 {[%clk 0:01:52]} 15. hxg3 {[%clk 0:02:33]}  Bc5 {[%clk 0:01:53]} 16. e5 {[%clk 0:02:25]}  Qd3 {[%clk 0:01:44]} 17. Qc1 {[%clk 0:01:44]}  Qg6 {[%clk 0:01:21]} 18. Qf4 {[%clk 0:01:35]}  f5 {[%clk 0:01:11]} 19. exf6 {[%clk 0:01:08]}  Bd6 {[%clk 0:00:52]} 20. Qd4 {[%clk 0:01:01]}  e5 {[%clk 0:00:45]} 21. Qd2 {[%clk 0:00:54]}  Nxf6 {[%clk 0:00:40]} 22. Rae1 {[%clk 0:00:49]}  Re8 {[%clk 0:00:41]} 23. Nh4 {[%clk 0:00:45]}  Qf7 {[%clk 0:00:32]} 24. f4 {[%clk 0:00:21]}  exf4 {[%clk 0:00:28]} 25. Rxe8+ {[%clk 0:00:21]}  Qxe8 {[%clk 0:00:29]} 26. Nd5 {[%clk 0:00:17]}  Qf7 {[%clk 0:00:05]} 27. Nxf4 {[%clk 0:00:10]}  Qg7 {[%clk 0:00:07]} 28. Qd4 {[%clk 0:00:05]}  Bg4 {[%clk 0:00:06]} 29. Re1 {[%clk 0:00:03]}  Kh8 {[%clk 0:00:06]} 30. Ne6 {[%clk 0:00:03]}  Bxe6 {[%clk 0:00:07]} 31. Rxe6 {[%clk 0:00:04]}  Nh5 {[%clk 0:00:05]} 32. Qxg7+ {[%clk 0:00:03]}  Nxg7 {[%clk 0:00:03]} 33. Rh6 {[%clk 0:00:04]}  Bxg3 {[%clk 0:00:04]} 34. Ng6+ {[%clk 0:00:05]}  Kg8 {[%clk 0:00:05]} 35. Bd5+ {[%clk 0:00:05]}  Ne6 {[%clk 0:00:07]} 36. Ne7+ {[%clk 0:00:04]}  Kf7 {[%clk 0:00:03]} 37. Nf5 {[%clk 0:00:04]}  Bf4 {[%clk 0:00:03]} 38. Rxe6 {[%clk 0:00:05]}  Kf8 {[%clk 0:00:03]} 39. Rf6+ {[%clk 0:00:05]}  Ke8 {[%clk 0:00:05]} 40. Bf7+ {[%clk 0:00:04]}  Kd8 {[%clk 0:00:05]} 41. Re6 {[%clk 0:00:05]} 1-0

[Event "Grandmaster Triathlon (GM1)"]
[Site "Biel, CH"]
[Date "2025.07.20"]
[Round "17"]
[White "Fedoseev, Vladimir"]
[Black "Murzin, Volodar"]
[Result "1-0"]
[Board "2"]
[TimeControl "180+2"]
[WhiteFideId "24130737"]
[BlackFideId "44155573"]
[WhiteTitle "GM"]
[BlackTitle "GM"]
[WhiteElo "2746"]
[BlackElo "2669"]
[WhiteTeam "SLO"]
[BlackTeam "FID"]
[WhiteClock "0:00:11"]
[BlackClock "0:00:05"]
[Variant "Standard"]

1. d4 {[%clk 0:03:03]}  d5 {[%clk 0:03:03]} 2. c4 {[%clk 0:02:56]}  c6 {[%clk 0:03:04]} 3. cxd5 {[%clk 0:02:57]}  cxd5 {[%clk 0:03:05]} 4. Bf4 {[%clk 0:02:54]}  e6 {[%clk 0:03:06]} 5. Nc3 {[%clk 0:02:54]}  Bd6 {[%clk 0:03:07]} 6. Bxd6 {[%clk 0:02:52]}  Qxd6 {[%clk 0:03:07]} 7. e3 {[%clk 0:02:45]}  Ne7 {[%clk 0:03:03]} 8. Bd3 {[%clk 0:02:46]}  Nbc6 {[%clk 0:03:01]} 9. a3 {[%clk 0:02:39]}  Bd7 {[%clk 0:02:57]} 10. Qh5 {[%clk 0:02:38]}  e5 {[%clk 0:02:04]} 11. Nge2 {[%clk 0:02:14]}  Qf6 {[%clk 0:01:43]} 12. e4 {[%clk 0:01:25]}  g6 {[%clk 0:01:26]} 13. Qh6 {[%clk 0:01:25]}  exd4 {[%clk 0:01:26]} 14. Nxd5 {[%clk 0:01:23]}  Nxd5 {[%clk 0:01:27]} 15. exd5 {[%clk 0:01:23]}  Ne5 {[%clk 0:01:28]} 16. Rd1 {[%clk 0:01:19]}  O-O-O {[%clk 0:00:35]} 17. Qd2 {[%clk 0:00:53]}  Kb8 {[%clk 0:00:29]} 18. Be4 {[%clk 0:00:38]}  Ba4 {[%clk 0:00:28]} 19. Rc1 {[%clk 0:00:36]}  d3 {[%clk 0:00:20]} 20. Nc3 {[%clk 0:00:34]}  Bc2 {[%clk 0:00:20]} 21. Rxc2 {[%clk 0:00:16]}  dxc2 {[%clk 0:00:20]} 22. O-O {[%clk 0:00:17]}  Nc4 {[%clk 0:00:13]} 23. Qxc2 {[%clk 0:00:18]}  Nd6 {[%clk 0:00:14]} 24. g3 {[%clk 0:00:16]}  Qe5 {[%clk 0:00:14]} 25. Bf3 {[%clk 0:00:16]}  f5 {[%clk 0:00:14]} 26. Ne2 {[%clk 0:00:15]}  Rc8 {[%clk 0:00:13]} 27. Nc3 {[%clk 0:00:04]}  h5 {[%clk 0:00:12]} 28. Qc1 {[%clk 0:00:05]}  h4 {[%clk 0:00:13]} 29. Re1 {[%clk 0:00:06]}  Qd4 {[%clk 0:00:12]} 30. Re6 {[%clk 0:00:06]}  hxg3 {[%clk 0:00:12]} 31. hxg3 {[%clk 0:00:08]}  Nb5 {[%clk 0:00:06]} 32. Qe1 {[%clk 0:00:03]}  Nxc3 {[%clk 0:00:07]} 33. bxc3 {[%clk 0:00:05]}  Qxc3 {[%clk 0:00:07]} 34. Qxc3 {[%clk 0:00:05]}  Rxc3 {[%clk 0:00:08]} 35. Kg2 {[%clk 0:00:06]}  g5 {[%clk 0:00:08]} 36. Re5 {[%clk 0:00:05]}  g4 {[%clk 0:00:09]} 37. Be2 {[%clk 0:00:07]}  Rf8 {[%clk 0:00:09]} 38. d6 {[%clk 0:00:07]}  Rxa3 {[%clk 0:00:07]} 39. d7 {[%clk 0:00:04]}  Rd8 {[%clk 0:00:08]} 40. Rxf5 {[%clk 0:00:06]}  Rxd7 {[%clk 0:00:09]} 41. Rf8+ {[%clk 0:00:06]}  Kc7 {[%clk 0:00:11]} 42. Bxg4 {[%clk 0:00:07]}  Rg7 {[%clk 0:00:12]} 43. Be6 {[%clk 0:00:07]}  a5 {[%clk 0:00:12]} 44. g4 {[%clk 0:00:06]}  Kd6 {[%clk 0:00:12]} 45. Bf5 {[%clk 0:00:06]}  a4 {[%clk 0:00:12]} 46. f4 {[%clk 0:00:04]}  Ra2+ {[%clk 0:00:12]} 47. Kg3 {[%clk 0:00:05]}  a3 {[%clk 0:00:13]} 48. g5 {[%clk 0:00:06]}  b5 {[%clk 0:00:14]} 49. g6 {[%clk 0:00:06]}  b4 {[%clk 0:00:16]} 50. Rf6+ {[%clk 0:00:07]}  Kc5 {[%clk 0:00:17]} 51. Rf7 {[%clk 0:00:08]}  Rg8 {[%clk 0:00:18]} 52. Rc7+ {[%clk 0:00:07]}  Kd6 {[%clk 0:00:16]} 53. Rd7+ {[%clk 0:00:08]}  Kc6 {[%clk 0:00:17]} 54. Ra7 {[%clk 0:00:08]}  Rb2 {[%clk 0:00:17]} 55. g7 {[%clk 0:00:08]}  Kb6 {[%clk 0:00:17]} 56. Be6 {[%clk 0:00:07]}  Rd8 {[%clk 0:00:10]} 57. Rd7 {[%clk 0:00:08]}  Rb8 {[%clk 0:00:10]} 58. Rf7 {[%clk 0:00:06]}  Rb1 {[%clk 0:00:08]} 59. Rf8 {[%clk 0:00:05]}  Rg1+ {[%clk 0:00:08]} 60. Kf2 {[%clk 0:00:07]}  Rxg7 {[%clk 0:00:09]} 61. Rxb8+ {[%clk 0:00:08]}  Kc5 {[%clk 0:00:10]} 62. f5 {[%clk 0:00:09]}  Re7 {[%clk 0:00:07]} 63. Rc8+ {[%clk 0:00:06]}  Kb5 {[%clk 0:00:06]} 64. Bc4+ {[%clk 0:00:07]}  Kb6 {[%clk 0:00:06]} 65. f6 {[%clk 0:00:09]}  Re5 {[%clk 0:00:04]} 66. f7 {[%clk 0:00:10]}  Rf5+ {[%clk 0:00:05]} 67. Ke3 {[%clk 0:00:11]} 1-0

[Event "Grandmaster Triathlon (GM1)"]
[Site "Biel, CH"]
[Date "2025.07.20"]
[Round "17"]
[White "Salem, A.R. Saleh"]
[Black "Wojtaszek, Radoslaw"]
[Result "0-1"]
[Board "3"]
[TimeControl "180+2"]
[WhiteFideId "9301348"]
[BlackFideId "1118358"]
[WhiteTitle "GM"]
[BlackTitle "GM"]
[WhiteElo "2644"]
[BlackElo "2610"]
[WhiteTeam "UAE"]
[BlackTeam "POL"]
[WhiteClock "0:00:06"]
[BlackClock "0:00:58"]
[Variant "Standard"]

1. d4 {[%clk 0:03:03]}  Nf6 {[%clk 0:03:03]} 2. c4 {[%clk 0:03:02]}  e6 {[%clk 0:03:04]} 3. Nc3 {[%clk 0:03:04]}  Bb4 {[%clk 0:03:06]} 4. a3 {[%clk 0:03:05]}  Bxc3+ {[%clk 0:03:06]} 5. bxc3 {[%clk 0:03:06]}  c5 {[%clk 0:03:04]} 6. f3 {[%clk 0:03:07]}  Nc6 {[%clk 0:03:04]} 7. e4 {[%clk 0:03:08]}  d6 {[%clk 0:03:04]} 8. Be3 {[%clk 0:03:09]}  b6 {[%clk 0:03:01]} 9. Bd3 {[%clk 0:03:10]}  e5 {[%clk 0:03:01]} 10. Ne2 {[%clk 0:03:11]}  h6 {[%clk 0:03:00]} 11. O-O {[%clk 0:03:04]}  O-O {[%clk 0:02:36]} 12. d5 {[%clk 0:02:45]}  Ne7 {[%clk 0:02:25]} 13. Qd2 {[%clk 0:02:13]}  Ng6 {[%clk 0:02:03]} 14. Kh1 {[%clk 0:02:13]}  Nh7 {[%clk 0:01:52]} 15. Qc2 {[%clk 0:01:58]}  Kh8 {[%clk 0:01:43]} 16. Rf2 {[%clk 0:01:54]}  Qh4 {[%clk 0:01:41]} 17. g3 {[%clk 0:01:54]}  Qh5 {[%clk 0:01:33]} 18. Raf1 {[%clk 0:01:02]}  Ng5 {[%clk 0:01:22]} 19. g4 {[%clk 0:00:25]}  Qh4 {[%clk 0:01:19]} 20. Qd2 {[%clk 0:00:20]}  Nh3 {[%clk 0:01:16]} 21. Rg2 {[%clk 0:00:22]}  Bd7 {[%clk 0:01:15]} 22. Bc2 {[%clk 0:00:22]}  b5 {[%clk 0:01:12]} 23. Rg3 {[%clk 0:00:09]}  bxc4 {[%clk 0:01:07]} 24. Nc1 {[%clk 0:00:07]}  Rab8 {[%clk 0:01:06]} 25. Bd1 {[%clk 0:00:08]}  Nhf4 {[%clk 0:01:06]} 26. Bf2 {[%clk 0:00:09]}  Qg5 {[%clk 0:01:01]} 27. Be3 {[%clk 0:00:10]}  Rb1 {[%clk 0:01:01]} 28. Be2 {[%clk 0:00:09]}  Rfb8 {[%clk 0:01:01]} 29. Bxc4 {[%clk 0:00:07]}  R8b2 {[%clk 0:01:02]} 30. Qd1 {[%clk 0:00:06]}  Rxh2+ {[%clk 0:00:58]} 0-1

[Event "Grandmaster Triathlon (GM1)"]
[Site "Biel, CH"]
[Date "2025.07.20"]
[Round "18"]
[White "Murzin, Volodar"]
[Black "Aravindh, Chithambaram VR."]
[Result "0-1"]
[Board "1"]
[TimeControl "180+2"]
[WhiteFideId "44155573"]
[BlackFideId "5072786"]
[WhiteTitle "GM"]
[BlackTitle "GM"]
[WhiteElo "2669"]
[BlackElo "2611"]
[WhiteTeam "FID"]
[BlackTeam "IND"]
[WhiteClock "0:00:00"]
[BlackClock "0:00:03"]
[Variant "Standard"]

1. d4 {[%clk 0:03:03]}  d5 {[%clk 0:03:03]} 2. Nf3 {[%clk 0:03:04]}  Nf6 {[%clk 0:03:03]} 3. Bf4 {[%clk 0:03:05]}  Bg4 {[%clk 0:02:59]} 4. e3 {[%clk 0:03:02]}  e6 {[%clk 0:02:59]} 5. Nbd2 {[%clk 0:03:02]}  Bd6 {[%clk 0:02:59]} 6. Bg3 {[%clk 0:03:00]}  O-O {[%clk 0:02:57]} 7. Be2 {[%clk 0:02:56]}  c5 {[%clk 0:02:55]} 8. c3 {[%clk 0:02:57]}  Qc7 {[%clk 0:02:50]} 9. Ne5 {[%clk 0:02:42]}  Bxe2 {[%clk 0:02:49]} 10. Qxe2 {[%clk 0:02:43]}  Nc6 {[%clk 0:02:47]} 11. f4 {[%clk 0:02:42]}  Ne7 {[%clk 0:02:44]} 12. Bh4 {[%clk 0:02:39]}  Nf5 {[%clk 0:02:24]} 13. Bf2 {[%clk 0:02:16]}  Be7 {[%clk 0:02:25]} 14. h4 {[%clk 0:01:55]}  Nd6 {[%clk 0:02:12]} 15. h5 {[%clk 0:01:55]}  Nfe4 {[%clk 0:02:12]} 16. Nxe4 {[%clk 0:01:35]}  Nxe4 {[%clk 0:02:13]} 17. O-O {[%clk 0:01:23]}  f6 {[%clk 0:02:00]} 18. Nf3 {[%clk 0:01:16]}  f5 {[%clk 0:01:53]} 19. Qe1 {[%clk 0:01:09]}  cxd4 {[%clk 0:01:37]} 20. Nxd4 {[%clk 0:01:03]}  Qb6 {[%clk 0:01:34]} 21. Rb1 {[%clk 0:00:49]}  Bf6 {[%clk 0:01:27]} 22. h6 {[%clk 0:00:47]}  gxh6 {[%clk 0:01:23]} 23. Bh4 {[%clk 0:00:36]}  Bxd4 {[%clk 0:01:11]} 24. exd4 {[%clk 0:00:37]}  Kh8 {[%clk 0:01:10]} 25. Qe2 {[%clk 0:00:24]}  Rg8 {[%clk 0:01:05]} 26. Qh5 {[%clk 0:00:15]}  Rg6 {[%clk 0:01:06]} 27. Rfc1 {[%clk 0:00:11]}  Qa6 {[%clk 0:00:57]} 28. Rc2 {[%clk 0:00:11]}  Qd3 {[%clk 0:00:57]} 29. Qd1 {[%clk 0:00:06]}  Qe3+ {[%clk 0:00:55]} 30. Bf2 {[%clk 0:00:06]}  Qxf4 {[%clk 0:00:45]} 31. Qd3 {[%clk 0:00:07]}  Rag8 {[%clk 0:00:44]} 32. Be1 {[%clk 0:00:08]}  Rg4 {[%clk 0:00:31]} 33. b3 {[%clk 0:00:07]}  h5 {[%clk 0:00:31]} 34. c4 {[%clk 0:00:08]}  h4 {[%clk 0:00:30]} 35. cxd5 {[%clk 0:00:09]}  exd5 {[%clk 0:00:31]} 36. Rbc1 {[%clk 0:00:07]}  Qg5 {[%clk 0:00:26]} 37. Qf3 {[%clk 0:00:05]}  Rf4 {[%clk 0:00:22]} 38. Qh3 {[%clk 0:00:07]}  Ng3 {[%clk 0:00:20]} 39. Bd2 {[%clk 0:00:04]}  Ne2+ {[%clk 0:00:11]} 40. Kh1 {[%clk 0:00:05]}  Nxc1 {[%clk 0:00:11]} 41. Rxc1 {[%clk 0:00:05]}  Qg4 {[%clk 0:00:06]} 42. Bxf4 {[%clk 0:00:06]}  Qxf4 {[%clk 0:00:07]} 43. Re1 {[%clk 0:00:04]}  Qg3 {[%clk 0:00:05]} 44. Re7 {[%clk 0:00:03]}  b6 {[%clk 0:00:03]} 45. Rxa7 {[%clk 0:00:00]} 0-1

[Event "Grandmaster Triathlon (GM1)"]
[Site "Biel, CH"]
[Date "2025.07.20"]
[Round "18"]
[White "Svane, Frederik"]
[Black "Salem, A.R. Saleh"]
[Result "0-1"]
[Board "2"]
[TimeControl "180+2"]
[WhiteFideId "12923044"]
[BlackFideId "9301348"]
[WhiteTitle "GM"]
[BlackTitle "GM"]
[WhiteElo "2553"]
[BlackElo "2644"]
[WhiteTeam "GER"]
[BlackTeam "UAE"]
[WhiteClock "0:00:03"]
[BlackClock "0:00:48"]
[Variant "Standard"]

1. e4 {[%clk 0:03:03]}  c5 {[%clk 0:03:04]} 2. Nf3 {[%clk 0:03:04]}  d6 {[%clk 0:03:05]} 3. d4 {[%clk 0:03:05]}  cxd4 {[%clk 0:03:06]} 4. Nxd4 {[%clk 0:03:06]}  Nf6 {[%clk 0:03:07]} 5. Nc3 {[%clk 0:03:07]}  a6 {[%clk 0:03:09]} 6. Bg5 {[%clk 0:03:08]}  e6 {[%clk 0:03:10]} 7. Qf3 {[%clk 0:03:09]}  Nbd7 {[%clk 0:03:11]} 8. O-O-O {[%clk 0:03:07]}  Qc7 {[%clk 0:03:12]} 9. a3 {[%clk 0:03:08]}  Rb8 {[%clk 0:03:10]} 10. Bxf6 {[%clk 0:03:00]}  Nxf6 {[%clk 0:03:10]} 11. g4 {[%clk 0:03:01]}  b5 {[%clk 0:03:06]} 12. g5 {[%clk 0:02:53]}  Nd7 {[%clk 0:03:08]} 13. Qe3 {[%clk 0:02:31]}  Be7 {[%clk 0:03:04]} 14. f4 {[%clk 0:02:30]}  O-O {[%clk 0:02:52]} 15. f5 {[%clk 0:02:26]}  Ne5 {[%clk 0:02:45]} 16. f6 {[%clk 0:01:45]}  Bd8 {[%clk 0:02:46]} 17. h4 {[%clk 0:01:41]}  b4 {[%clk 0:02:43]} 18. axb4 {[%clk 0:01:42]}  Rxb4 {[%clk 0:02:45]} 19. h5 {[%clk 0:01:17]}  Qc5 {[%clk 0:02:30]} 20. Qd2 {[%clk 0:01:04]}  Bc7 {[%clk 0:01:30]} 21. g6 {[%clk 0:00:45]}  fxg6 {[%clk 0:01:14]} 22. fxg7 {[%clk 0:00:43]}  Rf7 {[%clk 0:00:58]} 23. hxg6 {[%clk 0:00:44]}  Nxg6 {[%clk 0:00:59]} 24. Bh3 {[%clk 0:00:45]}  d5 {[%clk 0:00:55]} 25. Kb1 {[%clk 0:00:27]}  Bf4 {[%clk 0:00:56]} 26. Nxe6 {[%clk 0:00:06]}  Rxb2+ {[%clk 0:00:53]} 27. Kxb2 {[%clk 0:00:03]}  Rb7+ {[%clk 0:00:48]} 28. Ka2 {[%clk 0:00:03]}  Qa5+ {[%clk 0:00:48]} 0-1

[Event "Grandmaster Triathlon (GM1)"]
[Site "Biel, CH"]
[Date "2025.07.20"]
[Round "18"]
[White "Wojtaszek, Radoslaw"]
[Black "Fedoseev, Vladimir"]
[Result "0-1"]
[Board "3"]
[TimeControl "180+2"]
[WhiteFideId "1118358"]
[BlackFideId "24130737"]
[WhiteTitle "GM"]
[BlackTitle "GM"]
[WhiteElo "2610"]
[BlackElo "2746"]
[WhiteTeam "POL"]
[BlackTeam "SLO"]
[WhiteClock "0:00:06"]
[BlackClock "0:00:10"]
[Variant "Standard"]

1. d4 {[%clk 0:03:03]}  d5 {[%clk 0:03:02]} 2. Nf3 {[%clk 0:03:03]}  e6 {[%clk 0:03:00]} 3. c4 {[%clk 0:03:05]}  dxc4 {[%clk 0:03:01]} 4. e3 {[%clk 0:03:03]}  Nf6 {[%clk 0:03:01]} 5. Bxc4 {[%clk 0:03:04]}  a6 {[%clk 0:03:02]} 6. O-O {[%clk 0:03:02]}  Nbd7 {[%clk 0:03:03]} 7. Qe2 {[%clk 0:02:47]}  b5 {[%clk 0:02:53]} 8. Bd3 {[%clk 0:02:48]}  c5 {[%clk 0:02:36]} 9. e4 {[%clk 0:02:35]}  Bb7 {[%clk 0:02:24]} 10. d5 {[%clk 0:02:29]}  c4 {[%clk 0:02:19]} 11. Bc2 {[%clk 0:02:30]}  Bc5 {[%clk 0:02:20]} 12. dxe6 {[%clk 0:02:23]}  fxe6 {[%clk 0:02:20]} 13. b3 {[%clk 0:01:56]}  cxb3 {[%clk 0:02:12]} 14. Bxb3 {[%clk 0:01:53]}  Nxe4 {[%clk 0:02:11]} 15. Nbd2 {[%clk 0:01:34]}  Ndf6 {[%clk 0:01:33]} 16. Nxe4 {[%clk 0:01:22]}  Nxe4 {[%clk 0:01:34]} 17. Bxe6 {[%clk 0:00:28]}  Qf6 {[%clk 0:01:27]} 18. Ng5 {[%clk 0:00:22]}  Qxa1 {[%clk 0:00:52]} 19. Bb2 {[%clk 0:00:17]}  Bxf2+ {[%clk 0:00:40]} 20. Kh1 {[%clk 0:00:17]}  Qxf1+ {[%clk 0:00:35]} 21. Qxf1 {[%clk 0:00:18]}  Nxg5 {[%clk 0:00:36]} 22. Qe2 {[%clk 0:00:07]}  Rf8 {[%clk 0:00:10]} 23. Bd5+ {[%clk 0:00:07]}  Kd7 {[%clk 0:00:11]} 24. Bxb7 {[%clk 0:00:04]}  Rae8 {[%clk 0:00:13]} 25. Qd3+ {[%clk 0:00:03]}  Kc7 {[%clk 0:00:14]} 26. Bc3 {[%clk 0:00:03]}  Rd8 {[%clk 0:00:07]} 27. Bd5 {[%clk 0:00:04]}  Bb6 {[%clk 0:00:06]} 28. Qg3+ {[%clk 0:00:05]}  Kc8 {[%clk 0:00:07]} 29. Qg4+ {[%clk 0:00:06]}  Rd7 {[%clk 0:00:08]} 30. h4 {[%clk 0:00:04]}  Rf1+ {[%clk 0:00:08]} 31. Kh2 {[%clk 0:00:06]}  Bc7+ {[%clk 0:00:10]} 32. g3 {[%clk 0:00:06]}  Rf2+ {[%clk 0:00:08]} 33. Kg1 {[%clk 0:00:08]}  Rc2 {[%clk 0:00:08]} 34. Be1 {[%clk 0:00:06]}  h5 {[%clk 0:00:07]} 35. Qxg5 {[%clk 0:00:05]}  Rc5 {[%clk 0:00:08]} 36. Bb7+ {[%clk 0:00:06]}  Kxb7 {[%clk 0:00:09]} 37. Qe3 {[%clk 0:00:06]}  Bb6 {[%clk 0:00:10]} 38. Qe4+ {[%clk 0:00:07]}  Ka7 {[%clk 0:00:10]} 39. Kg2 {[%clk 0:00:07]}  Rc1 {[%clk 0:00:08]} 40. Qe6 {[%clk 0:00:06]}  Rdc7 {[%clk 0:00:09]} 41. Bb4 {[%clk 0:00:07]}  a5 {[%clk 0:00:09]} 42. Bd6 {[%clk 0:00:08]}  R7c2+ {[%clk 0:00:09]} 43. Kf3 {[%clk 0:00:06]}  Rf1+ {[%clk 0:00:10]} 0-1

[Event "Grandmaster Triathlon (GM1)"]
[Site "Biel, CH"]
[Date "2025.07.20"]
[Round "19"]
[White "Aravindh, Chithambaram VR."]
[Black "Wojtaszek, Radoslaw"]
[Result "1-0"]
[Board "1"]
[TimeControl "180+2"]
[WhiteFideId "5072786"]
[BlackFideId "1118358"]
[WhiteTitle "GM"]
[BlackTitle "GM"]
[WhiteElo "2611"]
[BlackElo "2610"]
[WhiteTeam "IND"]
[BlackTeam "POL"]
[WhiteClock "0:00:08"]
[BlackClock "0:00:03"]
[Variant "Standard"]

1. d4 {[%clk 0:03:03]}  Nf6 {[%clk 0:03:03]} 2. Nf3 {[%clk 0:03:03]}  d5 {[%clk 0:03:03]} 3. e3 {[%clk 0:03:03]}  e6 {[%clk 0:03:03]} 4. Bd3 {[%clk 0:03:03]}  b6 {[%clk 0:03:04]} 5. O-O {[%clk 0:03:01]}  Bd6 {[%clk 0:03:03]} 6. b3 {[%clk 0:03:02]}  O-O {[%clk 0:03:01]} 7. Bb2 {[%clk 0:03:02]}  Bb7 {[%clk 0:03:01]} 8. Nbd2 {[%clk 0:03:03]}  c5 {[%clk 0:03:02]} 9. a3 {[%clk 0:02:53]}  Nc6 {[%clk 0:02:59]} 10. Ne5 {[%clk 0:02:53]}  Rc8 {[%clk 0:02:47]} 11. Qf3 {[%clk 0:02:42]}  cxd4 {[%clk 0:02:28]} 12. exd4 {[%clk 0:02:42]}  Ne7 {[%clk 0:02:28]} 13. Rae1 {[%clk 0:02:33]}  Ng6 {[%clk 0:02:24]} 14. Qe3 {[%clk 0:02:23]}  Qe7 {[%clk 0:02:23]} 15. f4 {[%clk 0:01:47]}  Bxa3 {[%clk 0:02:11]} 16. Bxa3 {[%clk 0:01:33]}  Qxa3 {[%clk 0:02:12]} 17. Ra1 {[%clk 0:01:34]}  Qe7 {[%clk 0:01:46]} 18. Rxa7 {[%clk 0:01:33]}  Ra8 {[%clk 0:01:47]} 19. Rxa8 {[%clk 0:01:18]}  Rxa8 {[%clk 0:01:47]} 20. Ndf3 {[%clk 0:01:19]}  Ne4 {[%clk 0:01:41]} 21. Ng5 {[%clk 0:01:07]}  Nxe5 {[%clk 0:01:20]} 22. Bxe4 {[%clk 0:01:02]}  dxe4 {[%clk 0:01:10]} 23. fxe5 {[%clk 0:01:01]}  Rf8 {[%clk 0:00:38]} 24. Nxe4 {[%clk 0:01:01]}  Bxe4 {[%clk 0:00:30]} 25. Qxe4 {[%clk 0:01:02]}  Qb4 {[%clk 0:00:31]} 26. Qd3 {[%clk 0:00:42]}  Rd8 {[%clk 0:00:31]} 27. c4 {[%clk 0:00:37]}  h6 {[%clk 0:00:25]} 28. h3 {[%clk 0:00:36]}  Qe7 {[%clk 0:00:26]} 29. Rd1 {[%clk 0:00:32]}  Qh4 {[%clk 0:00:25]} 30. Qe3 {[%clk 0:00:30]}  Qh5 {[%clk 0:00:24]} 31. Rd2 {[%clk 0:00:30]}  Qf5 {[%clk 0:00:25]} 32. d5 {[%clk 0:00:22]}  exd5 {[%clk 0:00:23]} 33. cxd5 {[%clk 0:00:23]}  b5 {[%clk 0:00:20]} 34. d6 {[%clk 0:00:22]}  Qe6 {[%clk 0:00:13]} 35. Qb6 {[%clk 0:00:18]}  Ra8 {[%clk 0:00:05]} 36. Qxb5 {[%clk 0:00:15]}  Ra1+ {[%clk 0:00:05]} 37. Kh2 {[%clk 0:00:16]}  Qf5 {[%clk 0:00:07]} 38. Qe2 {[%clk 0:00:09]}  Qb1 {[%clk 0:00:03]} 39. d7 {[%clk 0:00:08]} 1-0

[Event "Grandmaster Triathlon (GM1)"]
[Site "Biel, CH"]
[Date "2025.07.20"]
[Round "19"]
[White "Murzin, Volodar"]
[Black "Svane, Frederik"]
[Result "0-1"]
[Board "2"]
[TimeControl "180+2"]
[WhiteFideId "44155573"]
[BlackFideId "12923044"]
[WhiteTitle "GM"]
[BlackTitle "GM"]
[WhiteElo "2669"]
[BlackElo "2553"]
[WhiteTeam "FID"]
[BlackTeam "GER"]
[WhiteClock "0:00:04"]
[BlackClock "0:00:04"]
[Variant "Standard"]

1. e4 {[%clk 0:03:03]}  c5 {[%clk 0:03:03]} 2. Nf3 {[%clk 0:03:04]}  d6 {[%clk 0:03:04]} 3. Bb5+ {[%clk 0:03:02]}  Bd7 {[%clk 0:03:05]} 4. c4 {[%clk 0:03:03]}  Nc6 {[%clk 0:03:05]} 5. Nc3 {[%clk 0:03:01]}  e5 {[%clk 0:03:04]} 6. O-O {[%clk 0:02:58]}  Nge7 {[%clk 0:03:05]} 7. d3 {[%clk 0:02:59]}  Ng6 {[%clk 0:03:06]} 8. a3 {[%clk 0:03:00]}  Be7 {[%clk 0:02:58]} 9. Nd5 {[%clk 0:02:54]}  O-O {[%clk 0:02:58]} 10. b4 {[%clk 0:02:55]}  Bg4 {[%clk 0:02:27]} 11. Bxc6 {[%clk 0:02:51]}  bxc6 {[%clk 0:02:27]} 12. Ne3 {[%clk 0:02:52]}  Be6 {[%clk 0:02:23]} 13. Bd2 {[%clk 0:02:40]}  Qd7 {[%clk 0:02:15]} 14. Bc3 {[%clk 0:02:33]}  f6 {[%clk 0:02:16]} 15. Rb1 {[%clk 0:02:31]}  Kh8 {[%clk 0:02:06]} 16. bxc5 {[%clk 0:02:26]}  dxc5 {[%clk 0:02:07]} 17. Qc2 {[%clk 0:02:27]}  Nf4 {[%clk 0:02:04]} 18. Rfd1 {[%clk 0:02:28]}  Bf7 {[%clk 0:02:05]} 19. Ne1 {[%clk 0:02:17]}  Rfb8 {[%clk 0:01:59]} 20. Kf1 {[%clk 0:02:08]}  Bf8 {[%clk 0:01:58]} 21. Rxb8 {[%clk 0:02:08]}  Rxb8 {[%clk 0:01:58]} 22. Rb1 {[%clk 0:02:09]}  Rb7 {[%clk 0:01:34]} 23. Rxb7 {[%clk 0:02:01]}  Qxb7 {[%clk 0:01:35]} 24. Qb2 {[%clk 0:02:02]}  Qc8 {[%clk 0:01:30]} 25. Qb3 {[%clk 0:02:00]}  Ne6 {[%clk 0:01:22]} 26. f3 {[%clk 0:01:56]}  Nd4 {[%clk 0:01:22]} 27. Qb2 {[%clk 0:01:55]}  Be6 {[%clk 0:01:21]} 28. Kf2 {[%clk 0:01:54]}  Qc7 {[%clk 0:01:15]} 29. g3 {[%clk 0:01:49]}  Kg8 {[%clk 0:01:11]} 30. N1g2 {[%clk 0:01:46]}  Bd6 {[%clk 0:01:09]} 31. Bd2 {[%clk 0:01:46]}  Qb6 {[%clk 0:01:09]} 32. Bc3 {[%clk 0:01:35]}  Kf7 {[%clk 0:01:06]} 33. a4 {[%clk 0:01:28]}  Bc7 {[%clk 0:01:07]} 34. Qxb6 {[%clk 0:01:24]}  axb6 {[%clk 0:01:07]} 35. f4 {[%clk 0:01:24]}  g6 {[%clk 0:00:56]} 36. h4 {[%clk 0:01:19]}  Bh3 {[%clk 0:00:48]} 37. fxe5 {[%clk 0:01:17]}  Bxe5 {[%clk 0:00:47]} 38. Nf4 {[%clk 0:01:18]}  Bc8 {[%clk 0:00:43]} 39. Bb2 {[%clk 0:00:56]}  h5 {[%clk 0:00:21]} 40. Nfg2 {[%clk 0:00:51]}  g5 {[%clk 0:00:22]} 41. Ne1 {[%clk 0:00:46]}  Kg6 {[%clk 0:00:16]} 42. Bxd4 {[%clk 0:00:31]}  cxd4 {[%clk 0:00:16]} 43. N3c2 {[%clk 0:00:31]}  c5 {[%clk 0:00:15]} 44. Na3 {[%clk 0:00:32]}  Bb8 {[%clk 0:00:08]} 45. Nf3 {[%clk 0:00:31]}  Bd7 {[%clk 0:00:05]} 46. Nb5 {[%clk 0:00:31]}  Bg4 {[%clk 0:00:06]} 47. Nd2 {[%clk 0:00:29]}  gxh4 {[%clk 0:00:03]} 48. gxh4 {[%clk 0:00:30]}  Bd1 {[%clk 0:00:03]} 49. Nf3 {[%clk 0:00:13]}  Bxa4 {[%clk 0:00:04]} 50. Ke2 {[%clk 0:00:13]}  Kf7 {[%clk 0:00:05]} 51. Nd2 {[%clk 0:00:12]}  Bg3 {[%clk 0:00:05]} 52. Nf3 {[%clk 0:00:13]}  Ke6 {[%clk 0:00:06]} 53. Na3 {[%clk 0:00:12]}  f5 {[%clk 0:00:05]} 54. Nb5 {[%clk 0:00:06]}  fxe4 {[%clk 0:00:05]} 55. dxe4 {[%clk 0:00:06]}  Bc2 {[%clk 0:00:06]} 56. Ng5+ {[%clk 0:00:05]}  Kf6 {[%clk 0:00:07]} 57. Kd2 {[%clk 0:00:07]}  Bb3 {[%clk 0:00:04]} 58. Kd3 {[%clk 0:00:06]}  Bxh4 {[%clk 0:00:04]} 59. Nf3 {[%clk 0:00:08]}  Bg3 {[%clk 0:00:05]} 60. Na7 {[%clk 0:00:05]}  Bd1 {[%clk 0:00:06]} 61. Ng1 {[%clk 0:00:04]}  Bg4 {[%clk 0:00:04]} 62. Nc6 {[%clk 0:00:04]}  h4 {[%clk 0:00:04]} 0-1